bitfinex/quotes_SOLUSD_20250622
["timestamp","ask_amount","ask_price","bid_price","bid_amount"]
[1750566865422,25.0678393,136.36,136.33,26.0]
[1750566865728,18.10561963,136.35,136.34,4.40076279]
[1750566866228,23.5633393,136.35,136.34,4.40076279]
[1750566867317,23.5633393,136.35,136.31,26.0]
[1750566867489,18.10561963,136.32,136.31,26.0]
[1750566870224,18.10561963,136.32,136.31,30.40173134]
[1750566871619,18.10561963,136.32,136.29,26.0]
[1750566871831,18.10561963,136.3,136.29,26.0]
[1750566872825,23.5857883,136.3,136.29,30.40237728]
[1750566873028,18.10561963,136.3,136.29,30.40237728]
[1750566873331,25.19136657,136.3,136.25,4.40366972]
[1750566873499,18.10561963,136.28,136.26,26.0]
[1750566874145,18.10561963,136.28,136.25,4.40366972]
[1750566874344,18.10561963,136.28,136.27,26.0]
[1750566874728,18.10561963,136.28,136.27,30.4030234]
[1750566876923,10.8683864,136.28,136.27,30.4030234]
[1750566882135,10.8683864,136.28,136.24,4.40399295]
[1750566882453,10.8683864,136.25,136.2,4.40528634]
[1750566882637,4.40277835,136.28,136.2,4.40528634]
[1750566882638,10.8683864,136.23,136.2,4.40528634]
[1750566882948,10.8683864,136.21,136.17,4.40625688]
[1750566883152,10.8683864,136.2,136.17,4.40625688]
[1750566883347,10.8683864,136.19,136.14,10.8683864]
[1750566883549,5.48164694,136.23,136.14,10.8683864]
[1750566883851,10.8683864,136.19,136.17,26.0]
[1750566884037,10.8683864,136.2,136.18,26.0]
[1750566884437,10.8683864,136.19,136.16,26.0]
[1750566884645,10.8683864,136.19,136.18,26.0]
[1750566884850,5.48164694,136.23,136.18,26.0]
[1750566885032,10.8683864,136.21,136.16,36.8683864]
[1750566885227,10.8683864,136.2,136.16,26.0]
[1750566885532,10.8683864,136.2,136.17,4.40625688]
[1750566886743,10.8683864,136.2,136.17,15.42189909]
[1750566889758,10.8683864,136.21,136.17,15.42189909]
[1750566890369,1.5425,136.24,136.2,26.0]
[1750566890562,10.8683864,136.23,136.2,26.0]
[1750566891263,10.8683864,136.22,136.2,26.0]
[1750566891463,1.5425,136.24,136.2,26.0]
[1750566891667,10.8683864,136.23,136.2,26.0]
[1750566892586,10.8683864,136.23,136.21,4.40496292]
[1750566892759,10.8683864,136.22,136.21,4.40496292]
[1750566894755,10.8683864,136.22,136.2,4.40528634]
[1750566896577,1.5425,136.24,136.2,4.40528634]
[1750566896779,10.8683864,136.22,136.2,4.40528634]
[1750566899294,1.5425,136.24,136.22,26.0]
[1750566899496,6.9,136.25,136.22,26.0]
[1750566899804,1.501,136.28,136.26,26.0]
[1750566899964,6.82,136.3,136.26,36.8683864]
[1750566900155,6.82,136.3,136.27,10.8683864]
[1750566900361,6.82,136.3,136.2,37.4449339]
[1750566900362,10.8683864,136.28,136.2,37.4449339]
[1750566900556,30.64,136.29,136.24,26.0]
[1750566900759,10.8683864,136.26,136.24,26.0]
[1750566900980,10.8683864,136.27,136.24,26.0]
[1750566901386,10.8683864,136.28,136.25,4.40366972]
[1750566903678,10.8683864,136.28,136.25,15.41284403]
[1750566903879,10.8683864,136.3,136.26,10.8683864]
[1750566904089,1.501,136.32,136.27,26.0]
[1750566904287,10.8683864,136.3,136.27,26.0]
[1750566904970,12.3693864,136.32,136.28,26.0]
[1750566905696,12.3693864,136.32,136.29,4.40237728]
[1750566907406,1.501,136.32,136.29,4.40237728]
[1750566907586,17.6883864,136.33,136.29,15.40832048]
[1750566907901,10.8683864,136.32,136.29,15.40832048]
[1750566908271,6.82,136.33,136.29,15.40832048]
[1750566908475,6.82,136.33,136.32,26.0]
[1750566909290,10.8683864,136.34,136.32,26.0]
[1750566909598,10.8683864,136.34,136.33,4.4010856]
[1750566910403,1.6141,136.35,136.33,4.4010856]
[1750566910588,10.8683864,136.34,136.33,4.4010856]
[1750566913381,1.6141,136.35,136.33,4.4010856]
[1750566913581,10.8683864,136.34,136.33,4.4010856]
[1750566915403,94.42,136.38,136.33,15.4037996]
[1750566915601,10.8683864,136.35,136.33,4.4010856]
[1750566916181,10.8683864,136.34,136.32,30.40140845]
[1750566916394,124.98,136.38,136.32,30.40140845]
[1750566916608,10.8683864,136.34,136.32,30.40140845]
[1750566917087,87.6,136.37,136.32,41.40492957]
[1750566917297,10.8683864,136.34,136.32,41.40492957]
[1750566920218,10.8683864,136.33,136.32,30.40140845]
[1750566920513,10.8683864,136.34,136.32,30.40140845]
[1750566921219,37.36,136.38,136.32,41.40492957]
[1750566921509,10.8683864,136.36,136.32,52.27331597]
[1750566921898,6.82,136.38,136.33,10.8683864]
[1750566922098,10.8683864,136.37,136.33,10.8683864]
[1750566922999,10.8683864,136.36,136.32,41.40492957]
[1750566924008,10.8683864,136.37,136.32,52.27331597]
[1750566924414,6.82,136.38,136.33,10.8683864]
[1750566924610,10.8683864,136.37,136.33,10.8683864]
[1750566924810,10.8683864,136.37,136.32,52.27331597]
[1750566925322,10.8683864,136.36,136.32,74.28035822]
[1750566926414,10.8683864,136.37,136.32,74.28035822]
[1750566927221,10.8683864,136.37,136.32,63.41197182]
[1750566927423,10.8683864,136.36,136.32,74.28035822]
[1750566928005,10.8683864,136.37,136.32,74.28035822]
[1750566928207,10.8683864,136.37,136.32,63.41197182]
[1750566928613,10.8683864,136.37,136.32,74.28035822]
[1750566929135,1.6053,136.44,136.36,26.0]
[1750566929320,10.8683864,136.41,136.38,26.0]
[1750566929636,10.8683864,136.4,136.38,26.0]
[1750566929832,10.8683864,136.4,136.36,26.0]
[1750566930041,10.8683864,136.4,136.38,26.0]
[1750566931210,10.8683864,136.4,136.39,4.39914949]
[1750566933840,10.8683864,136.41,136.39,15.39702323]
[1750566934257,10.8683864,136.4,136.39,15.39702323]
[1750566935157,10.8683864,136.41,136.39,15.39702323]
[1750566936255,13.0338,136.46,136.42,26.0]
[1750566936560,10.8683864,136.45,136.42,26.0]
[1750566937232,10.8683864,136.45,136.43,4.3978597]
[1750566937657,10.8683864,136.45,136.43,15.39250897]
[1750566937957,6.76,136.46,136.43,15.39250897]
[1750566938269,10.8683864,136.45,136.43,15.39250897]
[1750566938433,6.76,136.46,136.43,15.39250897]
[1750566938868,10.8683864,136.45,136.43,15.39250897]
[1750566940270,10.8683864,136.44,136.43,4.3978597]
[1750566940838,41.3683864,136.44,136.37,10.99883138]
[1750566941169,10.8683864,136.4,136.38,15.39815221]
[1750566941334,10.8683864,136.4,136.38,41.39815221]
[1750566941550,36.9331,136.44,136.38,41.39815221]
[1750566941753,10.8683864,136.41,136.38,41.39815221]
[1750566942779,10.8683864,136.4,136.38,41.39815221]
[1750566943473,10.8683864,136.41,136.38,41.39815221]
[1750566944978,10.8683864,136.4,136.38,41.39815221]
[1750566945355,5.44228366,136.43,136.38,41.39815221]
[1750566945577,10.8683864,136.41,136.38,41.39815221]
[1750566947571,10.8683864,136.4,136.38,41.39815221]
[1750566948380,10.8683864,136.39,136.36,4.40011733]
[1750566948681,10.8683864,136.37,136.35,15.4008446]
[1750566948976,10.8683864,136.36,136.35,30.40044004]
[1750566949197,10.8683864,136.36,136.35,4.40044004]
[1750566949396,10.8683864,136.36,136.33,4.4010856]
[1750566949574,10.8683864,136.34,136.33,4.4010856]
[1750566950792,10.8683864,136.34,136.3,4.40205429]
[1750566951076,10.8683864,136.32,136.31,26.0]
[1750566951273,10.8683864,136.32,136.3,4.40205429]
[1750566951473,10.8683864,136.31,136.27,4.4030234]
[1750566951693,10.8683864,136.28,136.27,4.4030234]
[1750566952076,10.8683864,136.28,136.24,4.40399295]
[1750566952275,10.8683864,136.25,136.24,4.40399295]
[1750566954006,10.8683864,136.25,136.19,11.01338447]
[1750566954214,10.8683864,136.22,136.2,4.40528634]
[1750566954417,10.8683864,136.22,136.21,26.0]
[1750566955000,10.8683864,136.22,136.16,24.65104886]
[1750566955001,12.4171864,136.22,136.17,4.40625688]
[1750566955202,10.8683864,136.19,136.18,26.0]
[1750566955372,10.8683864,136.2,136.18,26.0]
[1750566956101,10.8683864,136.21,136.18,26.0]
[1750566956895,10.8683864,136.21,136.19,4.4056098]
[1750566957212,10.8683864,136.2,136.19,4.4056098]
[1750566959981,10.8683864,136.2,136.16,4.40658049]
[1750566960184,8.2888,136.22,136.16,4.40658049]
[1750566960185,10.8683864,136.17,136.16,30.40658049]
[1750566961407,10.8683864,136.17,136.13,10.8683864]
[1750566961408,10.8683864,136.17,136.13,4.4075516]
[1750566961587,6.0459,136.19,136.13,15.42643061]
[1750566961785,6.74,136.24,136.17,10.8683864]
[1750566962006,6.74,136.24,136.19,36.8683864]
[1750566962007,10.8683864,136.23,136.19,36.8683864]
[1750566962212,6.74,136.24,136.19,36.8683864]
[1750566962394,6.74,136.24,136.2,10.8683864]
[1750566962592,17.6083864,136.24,136.2,10.8683864]
[1750566962799,10.8683864,136.23,136.18,36.8683864]
[1750566963603,17.6083864,136.24,136.22,26.0]
[1750566963892,17.6083864,136.24,136.23,4.40431622]
[1750566964122,6.74,136.24,136.23,4.40431622]
[1750566964427,6.74,136.24,136.23,30.40431622]
[1750566964722,10.8683864,136.26,136.23,4.40431622]
[1750566965138,10.8683864,136.26,136.23,15.41510679]
[1750566967007,41.3683864,136.27,136.23,15.41510679]
[1750566967207,10.8683864,136.26,136.24,26.0]
[1750566967926,10.8683864,136.27,136.23,15.41510679]
[1750566968129,10.8683864,136.26,136.23,15.41510679]
[1750566968442,1.5707,136.28,136.23,15.41510679]
[1750566968909,10.8683864,136.27,136.23,15.41510679]
[1750566969530,10.8683864,136.26,136.23,15.41510679]
[1750566971424,10.8683864,136.27,136.23,15.41510679]
[1750566971825,10.8683864,136.26,136.23,15.41510679]
[1750566972032,1.5707,136.28,136.23,15.41510679]
[1750566972344,10.8683864,136.27,136.23,15.41510679]
[1750566973443,10.8683864,136.25,136.23,4.40431622]
[1750566973649,10.8683864,136.24,136.23,4.40431622]
[1750566974247,10.8683864,136.24,136.2,4.40528634]
[1750566974542,10.8683864,136.21,136.2,4.40528634]
[1750566974745,10.8683864,136.21,136.18,4.40593332]
[1750566974935,10.8683864,136.19,136.18,4.40593332]
[1750566975648,10.8683864,136.19,136.17,26.0]
[1750566975649,10.8683864,136.19,136.17,30.40618863]
[1750566975827,10.8683864,136.18,136.17,30.40618863]
[1750566978222,10.8683864,136.18,136.15,4.40690414]
[1750566978443,10.8683864,136.16,136.15,4.40690414]
[1750566979846,10.8683864,136.16,136.12,4.4078754]
[1750566980047,10.8683864,136.13,136.12,4.4078754]
[1750566980349,10.8683864,136.13,136.11,26.0]
[1750566980552,1.5857,136.16,136.11,26.0]
[1750566980752,10.8683864,136.13,136.11,26.0]
[1750566981134,10.8683864,136.12,136.11,26.0]
[1750566981550,10.8683864,136.12,136.11,30.40819925]
[1750566982778,1.5857,136.16,136.11,41.42869737]
[1750566983055,37.26,136.19,136.15,26.0]
[1750566983257,10.8683864,136.18,136.15,26.0]
[1750566983562,6.74,136.19,136.15,26.0]
[1750566983563,10.8683864,136.17,136.16,4.40658049]
[1750566983861,10.8683864,136.17,136.14,4.40722785]
[1750566984156,10.8683864,136.15,136.14,4.40722785]
[1750566985159,10.8683864,136.15,136.13,30.40748866]
[1750566985342,10.8683864,136.14,136.13,30.40748866]
[1750566985959,10.8683864,136.16,136.13,30.40748866]
[1750566986262,10.8683864,136.18,136.15,26.0]
[1750566986963,10.8683864,136.18,136.16,26.0]
[1750566987153,17.6083864,136.19,136.16,26.0]
[1750566987865,17.6083864,136.19,136.17,4.40625688]
[1750566988184,6.74,136.19,136.17,4.40625688]
[1750566991540,24.87715662,136.19,136.17,4.40625688]
[1750566995068,6.74,136.19,136.17,4.40625688]
[1750566995270,6.9392421,136.21,136.17,33.55905571]
[1750566995271,19.64165662,136.21,136.17,33.55905571]
[1750566995781,19.64165662,136.21,136.17,15.42189909]
[1750566996158,18.13715662,136.2,136.17,15.42189909]
[1750566996560,19.64165662,136.21,136.17,15.42189909]
[1750566996760,25.10436445,136.21,136.17,15.42189909]
[1750566996983,19.64165662,136.21,136.17,15.42189909]
[1750566997285,25.10436445,136.21,136.17,15.42189909]
[1750566997477,19.64165662,136.21,136.17,15.42189909]
[1750566999590,23.60133471,136.22,136.17,33.55905571]
[1750567000188,18.13715662,136.21,136.17,15.42189909]
[1750567002607,24.87715662,136.24,136.22,26.0]
[1750567003711,24.87715662,136.24,136.23,4.40431622]
[1750567005914,24.87715662,136.24,136.22,4.40463955]
[1750567006084,18.13715662,136.23,136.22,4.40463955]
[1750567006481,18.13715662,136.23,136.18,4.40593332]
[1750567006696,18.13715662,136.2,136.18,4.40593332]
[1750567006893,18.13715662,136.2,136.18,30.40593332]
[1750567007091,18.13715662,136.2,136.19,26.0]
[1750567007612,18.13715662,136.2,136.18,4.40593332]
[1750567007812,18.13715662,136.19,136.14,22.54438447]
[1750567007999,18.13715662,136.17,136.14,15.42529748]
[1750567008201,18.13715662,136.17,136.16,26.0]
[1750567008812,10.88663715,136.17,136.16,26.0]
[1750567009013,10.88663715,136.17,136.14,4.40722785]
[1750567009223,10.88663715,136.15,136.14,30.40722785]
[1750567010708,10.88663715,136.15,136.14,4.40722785]
[1750567011504,10.88663715,136.15,136.11,26.0]
[1750567011708,10.88663715,136.12,136.09,4.40884708]
[1750567011934,10.88663715,136.1,136.05,26.32139312]
[1750567012233,10.88663715,136.09,136.05,26.32139312]
[1750567012444,10.88663715,136.09,136.08,26.0]
[1750567012957,10.88663715,136.1,136.08,26.0]
[1750567013226,10.88663715,136.12,136.1,26.0]
[1750567013403,12.53043715,136.13,136.1,26.0]
[1750567014012,12.53043715,136.13,136.11,30.40819925]
[1750567014807,30.48,136.16,136.12,26.0]
[1750567015032,41.36663715,136.16,136.14,26.0]
[1750567015337,12.42313715,136.17,136.14,26.0]
[1750567016118,10.88663715,136.16,136.15,4.40690414]
[1750567016332,10.88663715,136.16,136.15,30.40690414]
[1750567016939,19.68220903,136.17,136.15,30.40690414]
[1750567017745,18.14570903,136.16,136.15,30.40690414]
[1750567018225,19.68220903,136.17,136.15,30.40690414]
[1750567018831,18.14570903,136.16,136.15,30.40690414]
[1750567020340,19.68220903,136.17,136.15,30.40690414]
[1750567020727,18.14570903,136.16,136.15,30.40690414]
[1750567021319,1.5365,136.17,136.14,4.40711985]
[1750567021519,19.68220903,136.17,136.14,4.40711985]
[1750567022445,1.5365,136.17,136.14,4.40711985]
[1750567022824,19.68220903,136.17,136.14,4.40711985]
[1750567023228,1.5365,136.17,136.14,33.57089851]
[1750567023439,37.22,136.19,136.15,18.14570903]
[1750567023635,6.74,136.19,136.17,26.0]
[1750567023840,24.88570903,136.19,136.17,26.0]
[1750567024546,24.88570903,136.19,136.17,30.40613984]
[1750567025242,6.74,136.19,136.17,30.40613984]
[1750567025649,124.39535789,136.18,136.09,9.18895208]
[1750567025854,1.5955,136.14,136.1,18.14570903]
[1750567026033,19.74120903,136.14,136.1,18.14570903]
[1750567026440,5.47824945,136.16,136.13,26.0]
[1750567026636,5.47824945,136.16,136.15,18.14570903]
[1750567027758,5.47824945,136.16,136.14,18.14570903]
[1750567029132,5.47824945,136.16,136.15,4.40690414]
[1750567029536,5.47824945,136.16,136.14,30.40713582]
[1750567030527,5.47824945,136.16,136.15,18.14570903]
[1750567031046,5.47824945,136.16,136.15,22.55261317]
[1750567031355,5.47824945,136.16,136.15,48.55261317]
[1750567031530,5.47824945,136.16,136.15,26.0]
[1750567031742,5.47824945,136.16,136.15,30.40690414]
[1750567034449,5.47824945,136.16,136.15,26.0]
[1750567035160,5.47824945,136.16,136.15,30.40690414]
[1750567035458,5.47824945,136.16,136.15,26.0]
[1750567035662,5.47824945,136.16,136.13,4.40747594]
[1750567035857,5.47824945,136.16,136.13,30.40747594]
[1750567036268,18.14570903,136.15,136.12,4.40773994]
[1750567038659,23.62395848,136.16,136.12,4.40773994]
[1750567038862,16.3686912,136.16,136.12,4.40773994]
[1750567039070,5.47824945,136.16,136.13,10.89044175]
[1750567039292,5.47824945,136.16,136.14,10.89044175]
[1750567040064,5.47824945,136.16,136.15,4.40690414]
[1750567042363,5.47824945,136.16,136.14,4.40722785]
[1750567043994,5.47824945,136.16,136.13,10.89044175]
[1750567044288,5.47824945,136.16,136.12,15.42756391]
[1750567044489,16.3686912,136.16,136.12,4.4078754]
[1750567044990,5.47824945,136.16,136.12,15.29831715]
[1750567045369,5.47824945,136.16,136.13,10.89044175]
[1750567045568,5.47824945,136.16,136.15,26.0]
[1750567045873,5.47824945,136.16,136.15,41.29734589]
[1750567052397,5.47824945,136.16,136.15,30.40690414]
[1750567052692,5.47824945,136.16,136.15,41.29734589]
[1750567054323,5.47824945,136.16,136.15,4.40690414]
[1750567055771,5.47824945,136.16,136.15,36.89044175]
[1750567056806,5.47824945,136.16,136.15,41.29734589]
[1750567062610,5.47824945,136.16,136.15,30.40690414]
[1750567064020,17.9183912,136.16,136.15,4.40690414]
[1750567064307,17.9183912,136.16,136.13,30.4075516]
[1750567064512,10.89044175,136.14,136.13,26.0]
[1750567064890,10.89044175,136.14,136.11,4.40819925]
[1750567065095,10.89044175,136.12,136.08,4.40917107]
[1750567065300,10.89044175,136.11,136.08,4.40917107]
[1750567065618,10.89044175,136.11,136.08,30.40917107]
[1750567070102,10.89044175,136.1,136.09,26.0]
[1750567070300,10.89044175,136.1,136.08,4.40917107]
[1750567070607,10.89044175,136.09,136.08,30.40917107]
[1750567074302,1.526,136.1,136.08,30.40917107]
[1750567074615,10.89044175,136.09,136.08,30.40917107]
[1750567075514,10.89044175,136.09,136.08,26.0]
[1750567077535,10.89044175,136.09,136.08,30.40917107]
[1750567079130,10.89044175,136.09,136.08,4.40917107]
[1750567080018,10.89044175,136.09,136.06,4.40981919]
[1750567080333,10.89044175,136.09,136.06,15.43436718]
[1750567080543,12.41644175,136.1,136.06,41.43436718]
[1750567080712,1.526,136.1,136.06,52.32480893]
[1750567080910,1.526,136.1,136.06,41.43436718]
[1750567081110,1.526,136.1,136.06,52.32480893]
[1750567081736,5.47824945,136.16,136.12,26.0]
[1750567082028,5.47824945,136.16,136.15,26.0]
[1750567084138,5.47824945,136.16,136.15,30.40690414]
[1750567091255,5.47824945,136.16,136.15,41.29734589]
[1750567091547,16.3686912,136.16,136.14,26.0]
[1750567091754,10.89044175,136.15,136.14,26.0]
[1750567093256,10.89044175,136.15,136.14,30.40722785]
[1750567093634,16.3686912,136.16,136.14,30.40722785]
[1750567094542,5.47824945,136.16,136.14,30.40722785]
[1750567096730,16.3686912,136.16,136.14,30.40722785]
[1750567097140,10.89044175,136.15,136.14,30.40722785]
[1750567097331,16.3686912,136.16,136.14,30.40722785]
[1750567097551,5.47824945,136.16,136.14,30.40722785]
[1750567100057,16.3686912,136.16,136.14,30.40722785]
[1750567100553,5.47824945,136.16,136.14,30.40722785]
[1750567101157,5.47824945,136.16,136.15,26.0]
[1750567102173,5.47824945,136.16,136.15,30.40690414]
[1750567109090,5.47824945,136.16,136.15,41.29734589]
[1750567109253,5.47824945,136.16,136.15,30.40690414]
[1750567109884,5.47824945,136.16,136.15,41.29734589]
[1750567110879,5.47824945,136.16,136.15,30.40690414]
[1750567122492,16.3686912,136.16,136.15,30.40690414]
[1750567122694,7.9669,136.15,136.1,4.40852314]
[1750567123026,10.89044175,136.11,136.05,10.89044175]
[1750567123199,10.89044175,136.09,136.04,32.94161061]
[1750567123386,12.52464175,136.09,136.07,26.0]
[1750567124399,12.52464175,136.09,136.08,4.40917107]
[1750567124720,18.85734175,136.09,136.05,4.41014332]
[1750567124917,10.89044175,136.07,136.05,4.41014332]
[1750567125123,10.89044175,136.06,136.02,4.41111601]
[1750567125418,10.89044175,136.05,136.02,41.43890604]
[1750567126806,10.89044175,136.05,136.02,15.43890604]
[1750567127117,10.89044175,136.05,136.03,26.0]
[1750567128503,6.7,136.08,136.04,26.0]
[1750567128710,17.59044175,136.08,136.04,36.89044175]
[1750567129097,17.59044175,136.08,136.05,15.43550164]
[1750567130423,10.89044175,136.07,136.05,15.43550164]
[1750567134528,17.59044175,136.08,136.05,15.43550164]
[1750567134713,10.89044175,136.07,136.05,4.41014332]
[1750567136537,17.59044175,136.08,136.05,4.41014332]
[1750567137829,10.89044175,136.06,136.05,4.41014332]
[1750567138545,10.89044175,136.07,136.05,4.41014332]
[1750567138746,10.89044175,136.07,136.03,15.43776391]
[1750567139401,17.59044175,136.08,136.03,26.32820566]
[1750567139732,17.59044175,136.08,136.04,10.89044175]
[1750567140861,17.59044175,136.08,136.03,26.32820566]
[1750567141130,10.89044175,136.07,136.03,26.32820566]
[1750567141705,10.89044175,136.07,136.03,15.43776391]
[1750567142049,10.89044175,136.06,136.03,4.41079173]
[1750567142343,10.89044175,136.07,136.03,4.41079173]
[1750567143127,10.89044175,136.06,136.03,4.41079173]
[1750567144943,10.89044175,136.07,136.03,4.41079173]
[1750567145532,10.89044175,136.07,136.03,15.30123348]
[1750567146755,12.49704175,136.05,136.0,36.89044175]
[1750567146955,42.97704175,136.05,136.01,4.41144033]
[1750567147261,16.96084175,136.04,136.01,4.41144033]
[1750567147967,10.89044175,136.02,135.99,4.41208912]
[1750567148130,98.49044175,136.03,135.99,4.41208912]
[1750567148327,118.08,136.03,136.0,18.64964886]
[1750567149228,118.08,136.03,136.0,23.06132937]
[1750567149540,17.59044175,136.02,135.99,4.41196949]
[1750567150230,17.59044175,136.02,135.98,23.06199631]
[1750567150443,1.6068,136.0,135.98,23.06199631]
[1750567150644,32.0868,136.0,135.97,4.41261928]
[1750567150850,42.97724175,136.0,135.97,4.41261928]
[1750567151036,32.0868,136.0,135.97,4.41261928]
[1750567151544,42.97724175,136.0,135.97,4.41261928]
[1750567152152,6.3738,135.98,135.96,18.64964886]
[1750567152353,1.6068,136.0,135.98,18.64964886]
[1750567152645,30.48,135.99,135.98,18.64964886]
[1750567153347,30.48,135.99,135.95,41.44681229]
[1750567153348,30.48,135.99,135.96,29.54009061]
[1750567153867,30.48,135.99,135.96,18.64964886]
[1750567154063,10.89044175,135.98,135.95,26.0]
[1750567154436,98.49044175,135.98,135.93,29.54009061]
[1750567154655,10.89044175,135.97,135.93,18.64964886]
[1750567154840,30.48,135.96,135.93,23.06358814]
[1750567155043,30.48,135.96,135.93,33.95402989]
[1750567156146,32.0868,136.0,135.96,18.64964886]
[1750567156378,32.0868,136.0,135.96,10.89044175]
[1750567156675,42.97724175,136.0,135.96,18.64964886]
[1750567156837,10.89044175,135.99,135.96,18.64964886]
[1750567157264,10.89044175,135.98,135.94,4.41364347]
[1750567157463,30.48,135.97,135.94,23.06329233]
[1750567157970,30.48,135.97,135.94,33.95373408]
[1750567158578,30.48,135.97,135.94,23.06329233]
[1750567159639,1.6068,136.0,135.97,18.64964886]
[1750567159852,1.6068,136.0,135.98,10.89044175]
[1750567160054,1.6068,136.0,135.97,29.54009061]
[1750567160455,12.49724175,136.0,135.97,23.06236806]
[1750567160765,1.6068,136.0,135.97,23.06236806]
[1750567160974,1.6068,136.0,135.97,33.95280981]
[1750567161642,1.6068,136.0,135.97,23.06236806]
[1750567162073,1.6068,136.0,135.97,18.64964886]
[1750567162369,12.49724175,136.0,135.97,18.64964886]
[1750567162548,10.89044175,135.98,135.95,18.64964886]
[1750567163181,41.37044175,135.99,135.95,18.64964886]
[1750567163666,10.89044175,135.98,135.95,18.64964886]
[1750567164251,10.89044175,135.98,135.94,18.64964886]
[1750567164571,10.89044175,135.98,135.94,23.06326573]
[1750567164954,10.89044175,135.96,135.94,18.64964886]
[1750567165178,10.89044175,135.97,135.94,18.64964886]
[1750567165545,30.48,135.96,135.94,18.64964886]
[1750567166155,30.48,135.96,135.92,15.30474558]
[1750567166363,41.37044175,135.96,135.93,18.64964886]
[1750567166565,12.39974175,135.95,135.93,18.64964886]
[1750567166747,10.89044175,135.94,135.91,18.64964886]
[1750567166947,98.49044175,135.94,135.91,18.64964886]
[1750567167148,87.6,135.94,135.91,18.64964886]
[1750567167370,98.49044175,135.94,135.91,18.64964886]
[1750567167767,30.48,135.93,135.91,18.64964886]
[1750567168870,30.48,135.93,135.9,18.64964886]
[1750567169544,30.48,135.93,135.9,29.54009061]
[1750567169970,38.6893,135.95,135.93,18.64964886]
[1750567170377,8.2093,135.95,135.93,18.64964886]
[1750567170759,8.2093,135.95,135.92,18.64964886]
[1750567170945,19.09974175,135.95,135.92,18.64964886]
[1750567171150,30.48,135.94,135.92,18.64964886]
[1750567172057,10.89044175,135.93,135.9,18.64964886]
[1750567174354,10.89044175,135.92,135.9,18.64964886]
[1750567175052,41.39044175,135.91,135.9,18.64964886]
[1750567179262,41.39044175,135.91,135.88,18.64964886]
[1750567179461,10.89044175,135.9,135.88,18.64964886]
[1750567179660,30.5,135.89,135.88,18.64964886]
[1750567180479,30.5,135.89,135.86,18.64964886]
[1750567180683,30.5,135.89,135.86,33.95640151]
[1750567180858,30.5,135.89,135.86,23.06595976]
[1750567182395,41.39044175,135.89,135.86,23.06595976]
[1750567187195,30.5,135.89,135.86,23.06595976]
[1750567189792,30.5,135.89,135.86,33.95640151]
[1750567190398,41.39044175,135.91,135.86,44.99717878]
[1750567191308,5.46665513,135.93,135.86,44.99717878]
[1750567191490,41.39044175,135.92,135.88,18.64964886]
[1750567191698,41.39044175,135.92,135.89,4.41533593]
[1750567192098,10.89044175,135.91,135.89,4.41533593]
[1750567192483,10.89044175,135.9,135.87,4.41598586]
[1750567192814,10.89044175,135.89,135.88,18.64964886]
[1750567193028,41.39044175,135.9,135.88,18.64964886]
[1750567193906,30.5,135.9,135.88,18.64964886]
[1750567194116,41.39044175,135.9,135.88,4.41563229]
[1750567194616,41.39044175,135.9,135.87,4.41586561]
[1750567194812,10.89044175,135.88,135.86,18.64964886]
[1750567195117,41.39044175,135.88,135.86,18.64964886]
[1750567195285,41.39044175,135.88,135.85,18.64964886]
[1750567195286,10.89044175,135.87,135.85,18.64964886]
[1750567196305,41.39044175,135.86,135.82,4.41739215]
[1750567196632,10.89044175,135.83,135.8,0.2273657]
[1750567196799,10.89044175,135.81,135.8,0.2273657]
[1750567198325,15.30837857,135.81,135.8,0.2273657]
[1750567198527,20.78501952,135.81,135.8,0.2273657]
[1750567200135,10.0,135.8,135.71,18.64964886]
[1750567200319,10.89044175,135.74,135.71,18.64964886]
[1750567200514,10.89044175,135.74,135.71,23.0708411]
[1750567200833,10.89044175,135.72,135.68,18.64964886]
[1750567201130,10.89044175,135.72,135.68,34.12724319]
[1750567201510,10.89044175,135.72,135.68,60.12724319]
[1750567201932,41.39044175,135.73,135.68,34.12724319]
[1750567202108,30.5,135.73,135.7,18.64964886]
[1750567202304,30.5,135.73,135.69,29.54009061]
[1750567202528,41.39044175,135.73,135.69,18.64964886]
[1750567202731,30.5,135.73,135.69,29.54009061]
[1750567202907,10.89044175,135.74,135.69,29.54009061]
[1750567203420,32.1504,135.75,135.69,29.54009061]
[1750567203610,10.89044175,135.73,135.69,18.64964886]
[1750567204223,10.89044175,135.73,135.71,18.64964886]
[1750567205408,32.1504,135.75,135.71,18.64964886]
[1750567205723,10.89044175,135.72,135.71,18.64964886]
[1750567205934,32.1504,135.75,135.71,18.64964886]
[1750567206430,10.89044175,135.73,135.71,18.64964886]
[1750567206630,10.89044175,135.72,135.69,4.42176409]